Cogmind - Beta 13 @@@ ROGUE MODE // 2024.04.24 @ 20:55:01 Player: AntinDisguise Result: Destroyed by G-34 Mercenary with Small Laser Performance ------------- Evolutions (1) 500 Regions Visited (3) 600 Robots Destroyed (41) 205 Value Destroyed (1154) 1154 Prototype IDs (2) 40 Alien Tech Used (0) 0 Bonus (92) 92 TOTAL SCORE: 2591 Bonus ------- High Alert Combat Kills 81 Follower Combat Kills 126 Friendly Fire -115 Cogmind --------- Core Integrity 0/400 Matter 300/300 Energy 245/265 System Corruption 0% Temperature Warm (144) Movement Core (500) Ox9 Location -9/Materials Parts ------- > --- POWER (2) -------- Improved Ion Engine > --- PROPULSION (2) --- (None) > --- UTILITY (3) ------ Large Storage Unit > --- WEAPON (2) ------- Improved EM Shotgun > --- INVENTORY (15) --- Light Treads Light Treads Light Treads Light Treads Light Treads Light Treads Light Treads Light Treads Flak Cannon Flak Cannon Flak Cannon Flak Cannon Rocket Launcher Rocket Launcher Peak State ------------ > --- POWER ------------ Light Nuclear Core Light Angular Momentum Engine > --- PROPULSION ------- Aluminum Leg Aluminum Leg > --- UTILITY ---------- Improved Heat Sink Large Storage Unit Utility Shielding > --- WEAPON ----------- Beam Rifle Beam Rifle > --- INVENTORY -------- Improved Ion Engine Light Treads Light Treads Light Treads Light Treads Light Treads Light Treads Particle Gun Heavy Assault Rifle Rocket Launcher [Rating: 20] Favorites ----------- Power Ion Engine Engine Ion Engine Power Core Light Nuclear Core Propulsion Aluminum Leg Treads Light Treads Leg Aluminum Leg Wheel Compact Wheel Utility Large Storage Unit Device Heat Sink Storage Large Storage Unit Protection Utility Shielding Weapon Improved EM Shotgun Energy Gun Improved EM Shotgun Ballistic Gun Heavy Assault Rifle Launcher Rocket Launcher Build | -11 -10 -10 -9 ------- Run | Yrd Mat Min Mat Slots Evolved 2 | . . . 2 Power 1 | . . . 1 Propulsion . | . . . . Utility 1 | . . . 1 Weapon . | . . . . Parts Attached 49 | 6 7 3 33 Power 12 | 1 . 1 10 Engine 11 | 1 . 1 9 Core 1 | . . . 1 Reactor . | . . . . Propulsion 9 | 2 2 . 5 Treads 5 | . . . 5 Leg 2 | . 2 . . Wheel 2 | 2 . . . Hover . | . . . . Flight . | . . . . Utility 8 | 1 3 . 4 Device 5 | . 2 . 3 Storage 2 | 1 1 . . Processor . | . . . . Hackware . | . . . . Protection 1 | . . . 1 Artifact . | . . . . Weapon 20 | 2 2 2 14 Energy Gun 11 | 2 1 1 7 Energy Cannon . | . . . . Ballistic Gun 7 | . 1 1 5 Ballistic Cannon . | . . . . Launcher 2 | . . . 2 Special Weapon . | . . . . Impact Weapon . | . . . . Slashing Weapon . | . . . . Piercing Weapon . | . . . . Special Melee Weapon . | . . . . Unidentified Prototypes 2 | . . . 2 Parts Lost 28 | . 6 . 22 Power 8 | . 1 . 7 Propulsion 8 | . 2 . 6 Utility 6 | . 1 . 5 Weapon 6 | . 2 . 4 Highest Loss Streak 6 | . 3 . 6 To Critical Strikes 1 | . . . 1 Average Slot Usage (%) 89 | . 91 85 89 Engine 14 | . 11 1 16 Treads 9 | . . . 13 Leg 10 | . 19 28 6 Wheel 1 | . 6 . . Device 10 | . 12 14 9 Storage 11 | . 14 14 11 Protection 7 | . . . 10 Energy Gun 15 | . 23 14 13 Ballistic Gun 6 | . 2 12 6 Naked Turns . | . . . . Heaviest Build 43 | 14 29 32 43 Greatest Support 40 | 26 26 20 40 Greatest Overweight (x) 12 | . 4 1 12 Average Overweight (x) . | . . 1 . Largest Inventory Capacity 15 | 8 15 15 15 Average Capacity 14 | 7 12 15 15 Most Carried 15 | 4 5 9 15 Average Carried 7 | 1 2 4 9 Final Capacity 15 | 8 15 15 15 Final Carried 14 | 2 3 8 14 Class Distribution -------------------- 64% | Scavenger-Mutant 35% | Mutant Dominant Class ---------------- Mutant | -10/Materials Scavenger-Mutant | -10/Mines Scavenger-Mutant | -9/Materials Resources | -11 -10 -10 -9 ----------- Run | Yrd Mat Min Mat Matter Collected 744 | 195 128 . 421 Remotely . | . . . . Salvage Created 1556 | . 279 . 1277 Parts 100 | . 9 . 91 Haulers Intercepted 2 | . 1 . 1 Recyclers Shooed 2 | . . . 2 Parts Field Recycled . | . . . . Retrieved Matter . | . . . . Parts Self-Destructed . | . . . . Prevented . | . . . . Kills | -11 -10 -10 -9 ------- Run | Yrd Mat Min Mat Combat Hostiles Destroyed 34 | . 7 . 27 Guns 26 | . 7 . 19 AOE 8 | . . . 8 Classes Destroyed 8 | . 3 . 5 Builder 1 | . . . 1 Hauler 2 | . 1 . 1 Recycler 1 | . . . 1 Watcher 2 | . . . 2 Swarmer 10 | . 3 . 7 Grunt 16 | . 4 . 12 Duelist 2 | . . . 2 Sentry 6 | . . . 6 Thug 1 | . . . 1 Best Kill Streak 4 | . 3 . 4 Combat Bots Only 4 | . 3 . 4 Max Kills in Single Turn 3 | . 1 . 3 Gunslinging 1 | . . . 1 Exploded 2 | . . . 2 Melee . | . . . . Uniques/NPCs Destroyed . | . . . . Combat | -11 -10 -10 -9 -------- Run | Yrd Mat Min Mat Hostile Shots Fired 277 | . 64 4 209 Missed 70 | . 14 . 56 Damage Taken 2951 | . 572 60 2319 Core 550 | . 128 17 405 Absorbed by Shields . | . . . . Redirected to Shielding 54 | . . . 54 Core Remaining (%) 71 | 100 . 42 . Volleys Fired 118 | . 49 . 69 Largest 2 | . 2 . 2 Hottest 112 | . 90 . 112 Shots Fired 186 | . 65 . 121 Gun 182 | . 65 . 117 Cannon . | . . . . Launcher 4 | . . . 4 Special . | . . . . Kinetic 27 | . 3 . 24 Thermal 91 | . 56 . 35 Explosive 4 | . . . 4 Electromagnetic 64 | . 6 . 58 Robot Hit Streak 20 | . 12 . 20 Robot Miss Streak 4 | . 4 . 3 Penetration Max . | . . . . Secondary Targets 4 | . 1 . 3 Max Gunslinging Chain 1 | . 1 . 1 Shots Hit Robots 133 | . 42 . 91 Core Hits 74 | . 14 . 60 Critical Kills . | . . . . Critical Parts Destroyed . | . . . . Critical Strikes 4 | . 2 . 2 Burn 4 | . 2 . 2 Melee Attacks . | . . . . Impact . | . . . . Slashing . | . . . . Piercing . | . . . . Sneak Attacks . | . . . . Combat Hostiles . | . . . . Follow-up Attacks . | . . . . Damage Inflicted 2504 | . 517 . 1987 Guns 1991 | . 517 . 1474 Cannons . | . . . . Explosions 513 | . . . 513 Melee . | . . . . Ramming . | . . . . Kinetic 201 | . 7 . 194 Thermal 1336 | . 440 . 896 Explosive 35 | . . . 35 Electromagnetic 932 | . 70 . 862 Impact . | . . . . Slashing . | . . . . Piercing . | . . . . Highest Corruption . | . . . . Average Corruption . | . . . . Corruption Purged . | . . . . Corruption Blocked . | . . . . Overload Shots . | . . . . Overflow Damage 80 | . . . 80 Projectiles . | . . . . Explosions 80 | . . . 80 Melee . | . . . . Knockbacks . | . . . . Impact . | . . . . Kinetic . | . . . . Secondary . | . . . . Self-Inflicted Damage 334 | . . . 334 Shots 7 | . . . 7 Rammed . | . . . . Targets Rammed . | . . . . Kicked . | . . . . Crushed . | . . . . Highest Temperature 138 | . 79 . 138 Average Temperature 39 | . 29 . 42 Received Heat Transfer 1113 | . 285 18 810 Siege Activations . | . . . . Robots Corrupted . | . . . . Combat Hostiles . | . . . . Parts Fried 4 | . . . 4 Impact Corruptions . | . . . . Robots Melted . | . . . . Combat Hostiles . | . . . . Parts Melted 8 | . 3 . 5 Heat Transferred 3118 | . 1372 . 1746 Parts Sabotaged . | . . . . Parts Stolen . | . . . . Parts Stripped . | . . . . Power Chain Reactions 7 | . . . 7 Alert | -11 -10 -10 -9 ------- Run | Yrd Mat Min Mat Peak Influence 601 | . 92 86 601 Initial 33 | . . 27 33 Average 129 | . 40 40 163 Maximum Alert Level 2 | . . . 2 Low Security (%) 77 | 100 100 100 68 Level 1 14 | . . . 19 Level 2 8 | . . . 11 Level 3 . | . . . . Level 4 . | . . . . Level 5 . | . . . . High Security . | . . . . Max Security . | . . . . Squads Dispatched 4 | . 2 . 2 Investigation 2 | . 1 . 1 Extermination . | . . . . Reinforcement 1 | . 1 . . Assault 1 | . . . 1 Garrison . | . . . . Intercept . | . . . . Searches Triggered . | . . . . Construction Impeded . | . . . . Haulers Reinforced . | . . . . Active Scanning Responses . | . . . . Cargo Convoy Interrupts . | . . . . Stealth | -11 -10 -10 -9 --------- Run | Yrd Mat Min Mat Distress Signals 4 | . 1 . 3 Communications Jammed . | . . . . Distress Signals . | . . . . Times Spotted 60 | . 14 2 44 Peak Tracking Total 6 | . 5 2 6 Tactical Retreats 3 | . 1 . 2 Traps | -11 -10 -10 -9 ------- Run | Yrd Mat Min Mat Traps Triggered 1 | . . . 1 Indirectly . | . . . . Trap Hack Attempts . | . . . . Triggered . | . . . . Disarmed . | . . . . Reprogrammed . | . . . . Reused . | . . . . Traps Extracted . | . . . . Installed . | . . . . Triggered . | . . . . Machines | -11 -10 -10 -9 ---------- Run | Yrd Mat Min Mat Machines Disabled 6 | . . . 6 Max in Single Turn 2 | . . . 2 Machines Repaired . | . . . . Machines Dismantled . | . . . . Machines Sabotaged . | . . . . Overloaded Fab Kills . | . . . . Hacking | -11 -10 -10 -9 --------- Run | Yrd Mat Min Mat Machines Accessed 6 | . 2 . 4 Terminals 6 | . 2 . 4 Fabricators . | . . . . Repair Stations . | . . . . Recycling Units . | . . . . Scanalyzers . | . . . . Garrison Access . | . . . . Total Hacks 13 | . 6 . 7 Successful 4 | . 1 . 3 Failed 9 | . 5 . 4 Catastrophic 1 | . 1 . . Database Lockouts . | . . . . Manual . | . . . . Terminals 13 | . 6 . 7 Fabricators . | . . . . Repair Stations . | . . . . Recycling Units . | . . . . Scanalyzers . | . . . . Garrison Access . | . . . . Terminal Hacks 4 | . 1 . 3 Emergency Access Points 1 | . . . 1 Locate Traps 1 | . 1 . . Zone Layout 2 | . . . 2 Fabricator Hacks . | . . . . Repair Station Hacks . | . . . . Recycling Unit Hacks . | . . . . Scanalyzer . | . . . . Garrison Access Hacks . | . . . . Unauthorized Hacks . | . . . . Terminals . | . . . . Fabricators . | . . . . Repair Stations . | . . . . Recycling Units . | . . . . Scanalyzers . | . . . . Garrison Access . | . . . . Data Cores Recovered 1 | . . . 1 Used . | . . . . Hacking Detections 5 | . 2 . 3 Full Trace Events 1 | . 1 . . Feedback Events . | . . . . Feedback Blocked . | . . . . Robot Schematics Acquired . | . . . . Robots Built . | . . . . Authchips . | . . . . Time . | . . . . Total Robot Build Rating . | . . . . Part Schematics Acquired . | . . . . Parts Built . | . . . . Authchips . | . . . . Time . | . . . . Total Part Build Rating . | . . . . Parts Repaired . | . . . . Time . | . . . . Parts Recycled . | . . . . Recycled Matter . | . . . . Retrieved Matter . | . . . . Retrieved Components . | . . . . Parts Scanalyzed . | . . . . Part Schematics Acquired . | . . . . Parts Damaged . | . . . . Bothacking | -11 -10 -10 -9 ------------ Run | Yrd Mat Min Mat Used RIF Installer . | . . . . Robots Hacked . | . . . . Non-combat . | . . . . Combat . | . . . . Robot Hacks Applied . | . . . . Relay Couplers Released . | . . . . Fabnet Peak Effective % . | . . . . Robots Rewired . | . . . . Allies Hacked . | . . . . Hacks Repelled . | . . . . Allies | -11 -10 -10 -9 -------- Run | Yrd Mat Min Mat Total Allies 2 | . . 2 . Largest Group 2 | . . 2 2 Highest-Rated Group 42 | . . 42 42 Highest-Rated Ally 31 | . . 31 31 Total Orders . | . . . . Ally Attacks 21 | . . 2 19 Total Damage 319 | . . 42 277 Kills 7 | . . 2 5 Allies Corrupted . | . . . . Allies Melted . | . . . . Intel | -11 -10 -10 -9 ------- Run | Yrd Mat Min Mat Robot Analysis Total . | . . . . Derelict Logs Recovered 1 | . . 1 . Drone Launches . | . . . . Drone Recoveries . | . . . . Exploration | -11 -10 -10 -9 ------------- Run | Yrd Mat Min Mat Turns Passed 3394 | 41 636 252 2465 Spaces Moved 1464 | 34 337 112 981 Core 19 | 7 9 . 3 Treads 679 | . . . 679 Legs 635 | . 224 112 299 Wheels 131 | 27 104 . . Hover . | . . . . Flight . | . . . . Fastest Speed 50 | 50 90 190 160 Average Speed 187 | 80 148 190 203 Slowest Speed 650 | 90 250 190 650 Overloaded Moves . | . . . . Propulsion Burnouts . | . . . . Robots Hopped . | . . . . Cave-ins Triggered . | . . . . Exploration Rate (%) 42 | 3 54 41 73 Regions Visited 3 Branch Regions 1 Pre-discovered Areas . | . . . . Known Exits Taken . | . . . . Unknown Exits Taken 3 | 1 1 1 . Scrap Searched . | . . . . Spaces Dug 33 | . . . 33 Terrain Destroyed 114 | . . . 114 Melee . | . . . . Projectile . | . . . . AOE 114 | . . . 114 Terrain Rammed . | . . . . Walls Destroyed . | . . . . Machines Disabled . | . . . . Actions | -11 -10 -10 -9 --------- Run | Yrd Mat Min Mat Total 1934 | 47 408 152 1327 Wait 234 | . 5 29 200 Move 1461 | 33 336 111 981 Hop . | . . . . Pick Up 58 | 8 9 7 34 Fast Attach 2 | . . . 2 Attach 34 | 6 6 2 20 Detach . | . . . . Swap 13 | . 1 1 11 Drop 14 | . 2 2 10 Fire 118 | . 49 . 69 Melee . | . . . . Ram . | . . . . Kick . | . . . . Crush . | . . . . Escape Stasis . | . . . . Rewire . | . . . . Trap . | . . . . Miscellaneous . | . . . . Route ------- -11/Scrapyard -10/Materials (discovered 4 exits: *Mat x2 / [*Min x2]) -10/Mines -9/Materials (discovered 2 exits: *Mat x2) History --------- Turn | Location | Event 24 | -11/Scrapyard | Discovered new exit (range 15) 42 | -11/Scrapyard | Entered Materials 251 | -10/Materials | Discovered new exit (range 5) 317 | -10/Materials | Discovered new exit (range 11) 327 | -10/Materials | Build established: Mutant 411 | -10/Materials | Discovered new exit (range 7) 453 | -10/Materials | Discovered new exit (range 16) 573 | -10/Materials | Lost 3 parts (1p1u1w) 655 | -10/Materials | Core integrity fell below 50% 678 | -10/Materials | Entered Mines 685 | -10/Mines | Received a Rocket Launcher from a helpful Derelict 716 | -10/Mines | Learned location of 1 exit from Materials 842 | -10/Mines | Build established: Scavenger-Mutant 854 | -10/Mines | Discovered new exit (range 10) 930 | -10/Mines | Entered Materials 930 | -9/Materials | Accompanied by 2 allies 930 | -9/Materials | Evolved 2 slots: Power x1, Utility x1 931 | -9/Materials | Identified exit to Materials 941 | -9/Materials | Led the pair of lost Derelicts to an unsafe place 1766 | -9/Materials | Lost 5 parts (1p2n1u1w) 1860 | -9/Materials | Discovered exit to Materials (range 13) 2432 | -9/Materials | Core integrity fell below 50% 3034 | -9/Materials | Build established: Mutant 3330 | -9/Materials | First assault squad dispatched 3374 | -9/Materials | Core integrity fell below 20% 3395 | -9/Materials | Destroyed by G-34 Mercenary with Small Laser Last Messages --------------- force dispatched. C-30 ARC bursts open, deploying its payload. G-47 Trooper unfolds itself. L-31 Rogue unfolds itself. G-34 Mercenary unfolds itself. I-25 Savior unfolds itself. Imp. EM Shotgun severed. Lgt. Treads destroyed. Acquired Imp. EM Shotgun. Heat Sink destroyed. Chain reaction triggered in Lgt. Nuclear Core. L-31 Rogue destroyed. Imp. EM Shotgun destroyed. Destroyed Imp. EM Shotgun. Utility Shielding destroyed. Lgt. Treads destroyed. G-47 Trooper misfires. Imp. Heat Sink fried. G-47 Trooper destroyed. Ion Engine destroyed. Map ----- +----------------------------------------------------+ | ?????????????????????????????????????? | | ?????????????????????????????????????? | | ?????????????????????????????????????? | | ?????????????????????????????????????? | | ?????????????????????????????????????? | | ?????????????????????????????????????? | | ?????????????????????????????????????? | | ?????????????????????????????????????? | | ?????????????????????????????????????? | | ?????????????????????????????????????? | | ?????????????????????????????????????? | | ?????????????????????????????????????? | | ?????????????????????????????????????? | | ?????????????????????????????????????? | | ?????????????????????????????????????? | | ?????????????????????????????????????? | | ?????#####+####??????????????????????? | | ?????# #??????????????????????? | | ?????# #??????????????????????? | | ?????# #??????????????????????? | | ?????# #??????????????????????? | | ?????# #??????????????????????? | | ?????# #??????????????????????? | | ?????# #??????????????????????? | | ?????# g ###????????????????????? | | ?????# g @; #????????????????????? | | ?????###+###==%##????????????????????? | | ???????# #?#;%/#?????????????????????? | | ???????# #?## # ?????????????????????? | | ######## #??# ###????????????????????? | | # # #??#^#??????????????????????? | | # """ # ####%###????????????????????? | | # """ + ? ?????????? | | # """ # ##???????? ????????? | | # # #????????# ???????? | | # # #????????# ???????? | | #####+## #????????# ????????? | | ????# u#????????# """????#?? | | ????# #????????# """""? #?? | | ????# #### #????????# """"" #?? | | ????# #??# #????????# """ #?? | | ????# #??# #?######## #?? | | ????# #??# #?#!! !!# #?? | | ????# #??# #?#!! !!# """ #?? | | ????# #??# #?# # """"" #?? | | ????# #### ### # """"" #?? | | ????# " "" "" #?? | | ????# /=" < [ [ "" #?? | | ????# =%*# [ =% #?? | | ????# [%"###+######+###% #?? | +----------------------------------------------------+ Best States ------------- Heat Dissipation 42 Energy Generation 27 Energy Capacity 415 Matter Stores 300 Matter Capacity 300 Sight Range 16 Robot Scan Range 14 Terrain Scan Density 10 Utility Shielding 33 Evasion (%) 55 Recoil Reduction 2 Item Schematics ----------------- None Robot Schematics ------------------ None Fabricated ------------ Nothing Alien Tech Used ----------------- None Achievements -------------- None Challenges ------------ None Game ------ Seed AntimatterAlloyClaws Manual? 0 Play Time 00:21:57 Cumulative 26.4 hours Start 2024.04.24 @ 20:34:09 End 2024.04.24 @ 20:55:01 Sessions 1 Manual Loads 0 Difficulty Rogue Special Mode None Game No. 73 Rogue 71 Adventurer 2 Explorer 0 Win Type - Total 0 Types 0/0/0/0/0/0/0/0/0 Lore% 22 Gallery% 30 Achievement% 23 Wizard Run 0 Options --------- Layout 1 ASCII 0 Keyboard 0 Movement Mouse Keybinds 0 Fullscreen 1 Font 16/SmallcapsGlow Map View 55x38 Zoom Use 88% Tactical HUD 0 Map Filters NONE Filters NONE Steam 1 RUN: e102a346-a1e7-4a65-9ac1-7ee298aa5280